fUSD/lending_fUSD_20240624
["ID","MTS","AMOUNT","RATE_DAILY","PERIOD"]
[330292022,1719234674586,-1838.7,0.00021369,4]
[330292023,1719234674594,-500.0,0.00021369,4]
[330292024,1719234674604,-732.02,0.00021369,4]
[330292025,1719234674613,-500.0,0.00021369,4]
[330292026,1719234674623,-548.92,0.00021369,4]
[330292027,1719234674633,-500.0,0.00021369,4]
[330292028,1719234674644,-500.0,0.00021369,4]
[330292029,1719234674654,-1104.05,0.00021369,4]
[330292030,1719234674663,-500.0,0.00021369,4]
[330292031,1719234674672,-790.0,0.00021369,4]
[330292032,1719234674681,-500.0,0.00021369,4]
[330292033,1719234674690,-500.0,0.00021369,4]
[330292034,1719234674699,-950.44,0.00021369,4]
[330292035,1719234674708,-500.0,0.00021369,4]
[330292036,1719234674717,-775.48,0.00021369,4]
[330292037,1719234674726,-3276.0,0.00021369,4]
[330292038,1719234674735,-500.0,0.00021369,4]
[330292039,1719234674744,-713.29,0.00021369,4]
[330292040,1719234674753,-500.0,0.00021369,4]
[330292041,1719234674763,-500.0,0.00021369,4]
[330292042,1719234674773,-832.62,0.00021369,4]
[330292043,1719234674782,-803.86,0.00021369,4]
[330292044,1719234674791,-500.0,0.00021369,4]
[330292045,1719234674800,-832.67,0.00021369,4]
[330292046,1719234674809,-997.41,0.00021369,4]
[330292047,1719234674818,-689.81,0.00021369,4]
[330292048,1719234674827,-500.0,0.00021369,4]
[330292049,1719234674837,-1136.57,0.00021369,4]
[330292050,1719234674846,-594.74,0.00021369,4]
[330292051,1719234674855,-500.0,0.00021369,4]
[330292052,1719234674864,-500.0,0.00021369,4]
[330292053,1719234674873,-542.55850326,0.00021369,4]
[330292054,1719234674882,-556.0,0.00021369,4]
[330292055,1719234674893,-2120.74,0.00021369,4]
[330292056,1719234674902,-500.0,0.00021369,4]
[330292057,1719234674911,-500.0,0.00021369,4]
[330292058,1719234674921,-1028.46,0.00021369,4]
[330292059,1719234674930,-500.0,0.00021369,4]
[330292060,1719234674939,-500.0,0.00021369,4]
[330292061,1719234674947,-747.27,0.00021369,4]
[330292062,1719234674956,-622.5,0.00021369,4]
[330292063,1719234674965,-489.10805821,0.00021369,4]
[330292064,1719234674974,-1256.7,0.00021369,4]
[330292065,1719234674983,-500.0,0.00021369,4]
[330292066,1719234674991,-500.0,0.00021369,4]
[330292067,1719234675000,-1155.94,0.00021369,4]
[330292068,1719234675010,-1233.58,0.00021369,4]
[330292069,1719234675019,-500.0,0.00021369,4]
[330292070,1719234675028,-825.41,0.00021369,4]
[330292071,1719234675037,-500.0,0.00021369,4]
[330292072,1719234675047,-1536.4,0.00021369,4]
[330292073,1719234675057,-500.0,0.00021369,4]
[330292074,1719234675066,-616.11,0.00021369,4]
[330292075,1719234675075,-766.48,0.00021369,4]
[330292076,1719234675084,-1447.35,0.00021369,4]
[330292077,1719234675094,-698.01,0.00021369,4]
[330292078,1719234675103,-1293.45,0.00021369,4]
[330292079,1719234675272,-1214.1,0.00021369,4]
[330292080,1719234675282,-500.0,0.00021369,4]
[330292081,1719234675291,-500.0,0.00021369,4]
[330292082,1719234675300,-500.0,0.00021369,4]
[330292083,1719234675309,-1161.02,0.00021369,4]
[330292084,1719234675318,-500.0,0.00021369,4]
[330292085,1719234675328,-500.0,0.00021369,4]
[330292086,1719234675337,-1624.6,0.00021369,4]
[330292087,1719234675347,-1083.99,0.00021369,4]
[330292088,1719234675356,-274.6034909,0.00021369,2]
[330292089,1719234675366,-546.3,0.00021369,4]
[330292090,1719234675375,-500.0,0.00021369,4]
[330292091,1719234675384,-500.0,0.00021369,4]
[330292092,1719234675397,-746.16,0.00021369,4]
[330292093,1719234675406,-841.88,0.00021369,4]
[330292094,1719234675415,-1918.02,0.00021369,4]
[330292095,1719234675424,-1003.97,0.00021369,4]
[330292096,1719234675433,-500.0,0.00021369,4]
[330292097,1719234675442,-500.0,0.00021369,4]
[330292098,1719234675451,-500.0,0.00021369,4]
[330292099,1719234675460,-2470.72,0.00021369,4]
[330292100,1719234675470,-822.29,0.00021369,4]
[330292101,1719234675479,-1351.09,0.00021369,4]
[330292102,1719234675489,-1545.77,0.00021369,4]
[330292103,1719234675498,-1773.63,0.00021369,4]
[330292104,1719234675507,-1522.1,0.00021369,4]
[330292105,1719234675516,-1647.16,0.00021369,4]
[330292106,1719234675527,-500.0,0.00021369,4]
[330292107,1719234675539,-536.58,0.00021369,4]
[330292108,1719234675550,-194.3,0.000214,4]
[330292109,1719234675559,-939.0,0.00021459,2]
[330292110,1719234675569,-1269.62890364,0.00021492,2]
[330292111,1719234675579,-1038.82534873,0.00021492,2]
[330292112,1719234675588,-2156.35,0.0002153,2]
[330292113,1719234675598,-73878.08274411,0.000216,2]
[330292114,1719234675607,-155.0,0.00021615,2]
[330292115,1719234675617,-218.13539042,0.00021615,2]
[330292116,1719234675626,-216.58887624,0.00021615,2]
[330292117,1719234675636,-715.71837698,0.00021615,2]
[330292118,1719234675648,-298.08213762,0.00021615,2]
[330292119,1719234675656,-376.398091,0.00021621,2]
[330292120,1719234675665,-180.145641,0.00021623,2]
[330292121,1719234675674,-178.57691,0.00021623,2]
[330292122,1719234675683,-2702.813965,0.00021623,2]
[330292123,1719234675692,-160.59123,0.00021623,2]
[330292124,1719234675701,-3145.448991,0.00021623,2]
[330292125,1719234675710,-723.995839,0.00021623,2]
[330292126,1719234675721,-747.068877,0.00021623,2]
[330292127,1719234675730,-180.99896,0.00021623,2]
[330292128,1719234675740,-707.57,0.00021643,4]
[330292129,1719234675749,-675.73,0.00021643,4]
[330292130,1719234675758,-500.0,0.00021643,4]
[330292131,1719234675770,-500.0,0.00021643,4]
[330292132,1719234675779,-500.0,0.00021643,4]
[330292133,1719234675788,-890.58,0.00021643,4]
[330292134,1719234675797,-500.0,0.00021643,4]
[330292135,1719234675807,-615.75,0.00021643,4]
[330292136,1719234675817,-500.0,0.00021643,4]
[330292137,1719234675826,-500.0,0.00021643,4]
[330292138,1719234675835,-500.0,0.00021643,4]
[330292139,1719234675844,-605.34,0.00021643,4]
[330292140,1719234675854,-500.0,0.00021643,4]
[330292141,1719234675863,-870.76,0.00021643,4]
[330292142,1719234675872,-500.0,0.00021643,4]
[330292143,1719234675881,-209.09236848,0.00021643,4]
[330292144,1719234675892,-500.0,0.00021643,4]
[330292145,1719234675902,-601.49,0.00021643,4]
[330292146,1719234675910,-812.19,0.00021643,4]
[330292147,1719234675919,-500.0,0.00021643,4]
[330292148,1719234675928,-925.86,0.00021643,4]
[330292149,1719234675937,-611.19,0.00021643,4]
[330292150,1719234675947,-796.24,0.00021643,4]
[330292151,1719234675956,-738.65,0.00021643,4]
[330292152,1719234675965,-765.19,0.00021643,4]
[330292153,1719234675974,-500.0,0.00021643,4]
[330292154,1719234675984,-500.0,0.00021643,4]
[330292155,1719234675993,-500.0,0.00021643,4]
[330292156,1719234676003,-392.42562537,0.00021643,4]
[330292157,1719234676012,-500.0,0.00021643,4]
[330292158,1719234676021,-500.0,0.00021643,4]
[330292159,1719234676031,-500.0,0.00021643,4]
[330292160,1719234676041,-500.0,0.00021643,4]
[330292161,1719234676050,-500.0,0.00021643,4]
[330292162,1719234676059,-500.0,0.00021643,4]
[330292163,1719234676069,-288.08404719,0.00021643,4]
[330292164,1719234676078,-833.9,0.00021643,4]
[330292165,1719234676087,-500.0,0.00021643,4]
[330292166,1719234676096,-500.0,0.00021643,4]
[330292167,1719234676105,-500.0,0.00021643,4]
[330292168,1719234676114,-510.71,0.00021643,4]
[330292169,1719234676123,-896.69,0.00021643,4]
[330292170,1719234676133,-571.75,0.00021643,4]
[330292171,1719234676144,-300.57905708,0.00021643,4]
[330292172,1719234676153,-500.0,0.00021643,4]
[330292173,1719234676162,-1002.68,0.00021643,4]
[330292174,1719234676171,-500.0,0.00021643,4]
[330292175,1719234676180,-500.0,0.00021643,4]
[330292176,1719234676189,-1386.44,0.00021643,4]
[330292177,1719234676199,-500.0,0.00021643,4]
[330292178,1719234676207,-500.0,0.00021643,4]
[330292179,1719234676217,-500.0,0.00021643,4]
[330292180,1719234676226,-500.0,0.00021643,4]
[330292181,1719234676235,-500.0,0.00021643,4]
[330292182,1719234676244,-620.73806716,0.00021643,4]
[330292183,1719234676254,-500.0,0.00021643,4]
[330292184,1719234676263,-500.0,0.00021643,4]
[330292185,1719234676272,-500.0,0.00021643,4]
[330292186,1719234676281,-500.0,0.00021643,4]
[330292187,1719234676290,-500.0,0.00021643,4]
[330292188,1719234676299,-500.0,0.00021643,4]
[330292189,1719234676308,-500.0,0.00021643,4]
[330292190,1719234676317,-510.58,0.00021643,4]
[330292191,1719234676327,-500.0,0.00021643,4]
[330292192,1719234676336,-500.0,0.00021643,4]
[330292193,1719234676345,-500.0,0.00021643,4]
[330292194,1719234676354,-500.0,0.00021643,4]
[330292195,1719234676363,-500.0,0.00021643,4]
[330292196,1719234676372,-500.0,0.00021643,4]
[330292197,1719234676381,-389.16,0.00021643,4]
[330292198,1719234676394,-194.98971971,0.00021643,4]
[330292199,1719234676403,-500.0,0.00021643,4]
[330292200,1719234676413,-500.0,0.00021643,4]
[330292201,1719234676422,-500.0,0.00021643,4]
[330292202,1719234676431,-500.0,0.00021643,4]
[330292203,1719234676442,-500.0,0.00021643,4]
[330292204,1719234676452,-610.4,0.00021643,4]
[330292205,1719234676461,-500.0,0.00021643,4]
[330292206,1719234676470,-500.0,0.00021643,4]
[330292207,1719234676479,-500.0,0.00021643,4]
[330292208,1719234676488,-500.0,0.00021643,4]
[330292209,1719234676497,-578.19,0.00021643,4]
[330292210,1719234676506,-500.0,0.00021643,4]
[330292211,1719234676515,-500.0,0.00021643,4]
[330292212,1719234676524,-500.0,0.00021643,4]
[330292213,1719234676539,-500.0,0.00021643,4]
[330292214,1719234676548,-500.0,0.00021643,4]
[330292215,1719234676557,-500.0,0.00021643,4]
[330292216,1719234676566,-500.0,0.00021643,4]
[330292217,1719234676576,-240.0848278,0.00021643,4]
[330292218,1719234676585,-955.98,0.00021643,4]
[330292219,1719234676594,-500.0,0.00021643,4]
[330292220,1719234676603,-500.0,0.00021643,4]
[330292221,1719234676612,-500.0,0.00021643,4]
[330292222,1719234676621,-500.0,0.00021643,4]
[330292223,1719234676631,-500.0,0.00021643,4]
[330292224,1719234676643,-500.0,0.00021643,4]
[330292225,1719234676652,-500.0,0.00021643,4]
[330292226,1719234676661,-500.0,0.00021643,4]
[330292227,1719234676670,-593.43,0.00021643,4]
[330292228,1719234676680,-500.0,0.00021643,4]
[330292229,1719234676688,-500.0,0.00021643,4]
[330292230,1719234676698,-500.0,0.00021643,4]
[330292231,1719234676707,-500.0,0.00021643,4]
[330292232,1719234676716,-500.0,0.00021643,4]
[330292233,1719234676726,-500.0,0.00021643,4]
[330292234,1719234676734,-500.0,0.00021643,4]
[330292235,1719234676743,-500.0,0.00021643,4]
[330292236,1719234676752,-500.0,0.00021643,4]
[330292237,1719234676762,-500.0,0.00021643,4]
[330292238,1719234676771,-500.0,0.00021643,4]
[330292239,1719234676780,-500.0,0.00021643,4]
[330292240,1719234676789,-500.0,0.00021643,4]
[330292241,1719234676798,-721.78,0.00021643,4]
[330292242,1719234676815,-207.28543714,0.00021643,4]
[330292243,1719234676829,-500.0,0.00021643,4]
[330292244,1719234676838,-500.0,0.00021643,4]
[330292245,1719234676847,-500.0,0.00021643,4]
[330292246,1719234676857,-500.0,0.00021643,4]
[330292247,1719234676866,-185.62149838,0.00021643,4]
[330292248,1719234676875,-500.0,0.00021643,4]
[330292249,1719234676884,-500.0,0.00021643,4]
[330292250,1719234676895,-294.21011286,0.00021643,4]
[330292251,1719234676905,-500.0,0.00021643,4]
[330292252,1719234676914,-500.0,0.00021643,4]
[330292253,1719234676923,-500.0,0.00021643,4]
[330292254,1719234676933,-500.0,0.00021643,4]
[330292255,1719234676942,-500.0,0.00021643,4]
[330292256,1719234676951,-961.17,0.00021643,4]
[330292257,1719234676960,-500.0,0.00021643,4]
[330292258,1719234676970,-500.0,0.00021643,4]
[330292259,1719234676980,-500.0,0.00021643,4]
[330292260,1719234676989,-500.0,0.00021643,4]
[330292261,1719234676998,-500.0,0.00021643,4]
[330292262,1719234677008,-559.62,0.00021643,4]
[330292263,1719234677017,-500.0,0.00021643,4]
[330292264,1719234677026,-500.0,0.00021643,4]
[330292265,1719234677036,-500.0,0.00021643,4]
[330292266,1719234677044,-503.91,0.00021643,4]
[330292267,1719234677053,-500.0,0.00021643,4]
[330292268,1719234677062,-641.94,0.00021643,4]
[330292269,1719234677071,-500.0,0.00021643,4]
[330292270,1719234677080,-946.9,0.00021643,4]
[330292271,1719234677089,-2789.32,0.00021643,4]
[330292272,1719234677099,-500.0,0.00021643,4]
[330292273,1719234677108,-1021.32,0.00021643,4]
[330292274,1719234677117,-500.0,0.00021643,4]
[330292275,1719234677126,-500.0,0.00021643,4]
[330292276,1719234677135,-609.74,0.00021643,4]
[330292277,1719234677145,-2129.68,0.00021643,4]
[330292278,1719234677154,-523.1,0.00021643,4]
[330292279,1719234677163,-500.0,0.00021643,4]
[330292280,1719234677172,-604.89,0.00021643,4]
[330292281,1719234677181,-500.0,0.00021643,4]
[330292282,1719234677190,-500.0,0.00021643,4]
[330292283,1719234677199,-518.22,0.00021643,4]
[330292284,1719234677208,-539.45,0.00021643,4]
[330292285,1719234677217,-5685.35,0.00021643,4]
[330292286,1719234677227,-8388.92,0.00021643,4]
[330292287,1719234677236,-788.23,0.00021643,4]
[330292288,1719234677246,-931.76,0.00021643,4]
[330292289,1719234677256,-558.11,0.00021643,4]
[330292290,1719234677265,-589.44,0.00021643,4]
[330292291,1719234677275,-500.0,0.00021643,4]
[330292292,1719234677284,-500.0,0.00021643,4]
[330292293,1719234677294,-500.0,0.00021643,4]
[330292294,1719234677303,-500.0,0.00021643,4]
[330292295,1719234677313,-598.81,0.00021643,4]
[330292296,1719234677322,-500.0,0.00021643,4]
[330292297,1719234677331,-515.94,0.00021643,4]
[330292298,1719234677340,-1333.15,0.00021643,4]
[330292299,1719234677349,-1076.06,0.00021643,4]
[330292300,1719234677358,-552.26,0.00021643,4]
[330292301,1719234677367,-500.0,0.00021643,4]
[330292302,1719234677377,-507.36,0.00021643,4]
[330292303,1719234677386,-500.0,0.00021643,4]
[330292304,1719234677397,-1022.66,0.00021643,4]
[330292305,1719234677406,-500.0,0.00021643,4]
[330292306,1719234677415,-500.0,0.00021643,4]
[330292307,1719234677425,-500.0,0.00021643,4]
[330292308,1719234677435,-4095.82,0.00021643,4]
[330292309,1719234677444,-670.27,0.00021643,4]
[330292310,1719234677454,-500.0,0.00021643,4]
[330292311,1719234677463,-587.18,0.00021643,4]
[330292312,1719234677472,-500.0,0.00021643,4]
[330292313,1719234677481,-500.0,0.00021643,4]
[330292314,1719234677490,-599.34,0.00021643,4]
[330292315,1719234677499,-1195.25,0.00021643,4]
[330292316,1719234677510,-833.51,0.00021643,4]
[330292317,1719234677520,-675.38,0.00021643,4]
[330292318,1719234677530,-500.0,0.00021643,4]
[330292319,1719234677542,-1029.66,0.00021643,4]
[330292320,1719234677552,-500.0,0.00021643,4]
[330292321,1719234677561,-500.0,0.00021643,4]
[330292322,1719234677571,-500.0,0.00021643,4]
[330292323,1719234677581,-599.32,0.00021643,4]
[330292324,1719234677590,-500.0,0.00021643,4]
[330292325,1719234677600,-751.48,0.00021643,4]
[330292326,1719234677609,-504.75,0.00021643,4]
[330292327,1719234677622,-622.88,0.00021643,4]
[330292328,1719234677632,-812.04,0.00021643,4]
[330292329,1719234677643,-500.0,0.00021643,4]
[330292330,1719234677652,-1838.7,0.00021643,4]
[330292331,1719234677662,-500.0,0.00021643,4]
[330292332,1719234677671,-732.02,0.00021643,4]
[330292333,1719234677680,-500.0,0.00021643,4]
[330292334,1719234677690,-548.92,0.00021643,4]
[330292335,1719234677699,-500.0,0.00021643,4]
[330292336,1719234677709,-500.0,0.00021643,4]
[330292337,1719234677719,-1104.05,0.00021643,4]
[330292338,1719234677728,-220.09622641,0.00021643,4]
[330292339,1719234677738,-790.0,0.00021643,4]
[330292340,1719234677747,-500.0,0.00021643,4]
[330292341,1719234677757,-500.0,0.00021643,4]
[330292342,1719234677767,-950.44,0.00021643,4]
[330292343,1719234677776,-500.0,0.00021643,4]
[330292344,1719234677786,-775.48,0.00021643,4]
[330292345,1719234677795,-500.0,0.00021643,4]
[330292346,1719234677804,-3276.0,0.00021643,4]
[330292347,1719234677814,-713.29,0.00021643,4]
[330292348,1719234677823,-500.0,0.00021643,4]
[330292349,1719234677833,-500.0,0.00021643,4]
[330292350,1719234677842,-803.86,0.00021643,4]
[330292351,1719234677851,-832.62,0.00021643,4]
[330292352,1719234677861,-500.0,0.00021643,4]
[330292353,1719234677870,-832.67,0.00021643,4]
[330292354,1719234677879,-997.41,0.00021643,4]
[330292355,1719234677888,-689.81,0.00021643,4]
[330292356,1719234677899,-500.0,0.00021643,4]
[330292357,1719234677909,-1136.57,0.00021643,4]
[330292358,1719234677918,-594.74,0.00021643,4]
[330292359,1719234677927,-500.0,0.00021643,4]
[330292360,1719234677936,-500.0,0.00021643,4]
[330292361,1719234677944,-556.0,0.00021643,4]
[330292362,1719234677954,-2120.74,0.00021643,4]
[330292363,1719234677963,-500.0,0.00021643,4]
[330292364,1719234677972,-500.0,0.00021643,4]
[330292365,1719234677982,-1028.46,0.00021643,4]
[330292366,1719234677991,-500.0,0.00021643,4]
[330292367,1719234678000,-500.0,0.00021643,4]
[330292368,1719234678010,-747.27,0.00021643,4]
[330292369,1719234678020,-622.5,0.00021643,4]
[330292370,1719234678030,-1256.7,0.00021643,4]
[330292371,1719234678038,-500.0,0.00021643,4]
[330292372,1719234678047,-500.0,0.00021643,4]
[330292373,1719234678056,-1155.94,0.00021643,4]
[330292374,1719234678066,-1233.58,0.00021643,4]
[330292375,1719234678076,-500.0,0.00021643,4]
[330292376,1719234678086,-825.41,0.00021643,4]
[330292377,1719234678095,-500.0,0.00021643,4]
[330292378,1719234678104,-1536.4,0.00021643,4]
[330292379,1719234678114,-500.0,0.00021643,4]
[330292380,1719234678123,-616.11,0.00021643,4]
[330292381,1719234678132,-766.48,0.00021643,4]
[330292382,1719234678144,-1447.35,0.00021643,4]
[330292383,1719234678153,-698.01,0.00021643,4]
[330292384,1719234678162,-1293.45,0.00021643,4]
[330292385,1719234678171,-1214.1,0.00021643,4]
[330292386,1719234678180,-500.0,0.00021643,4]
[330292387,1719234678188,-500.0,0.00021643,4]
[330292388,1719234678198,-500.0,0.00021643,4]
[330292389,1719234678206,-1161.02,0.00021643,4]
[330292390,1719234678215,-500.0,0.00021643,4]
[330292391,1719234678225,-500.0,0.00021643,4]
[330292392,1719234678234,-1083.99,0.00021643,4]
[330292393,1719234678243,-1624.6,0.00021643,4]
[330292394,1719234678252,-546.3,0.00021643,4]
[330292395,1719234678261,-500.0,0.00021643,4]
[330292396,1719234678270,-500.0,0.00021643,4]
[330292397,1719234678280,-746.16,0.00021643,4]
[330292398,1719234678289,-841.88,0.00021643,4]
[330292399,1719234678298,-1918.02,0.00021643,4]
[330292400,1719234678308,-1003.97,0.00021643,4]
[330292401,1719234678318,-500.0,0.00021643,4]
[330292402,1719234678477,-500.0,0.00021643,4]
[330292403,1719234678488,-500.0,0.00021643,4]
[330292404,1719234678497,-2470.72,0.00021643,4]
[330292405,1719234678507,-822.29,0.00021643,4]
[330292406,1719234678516,-1351.09,0.00021643,4]
[330292407,1719234678526,-1545.77,0.00021643,4]
[330292408,1719234678541,-1773.63,0.00021643,4]
[330292409,1719234678550,-1522.1,0.00021643,4]
[330292410,1719234678559,-1647.16,0.00021643,4]
[330292411,1719234678569,-536.58,0.00021643,4]
[330292412,1719234678579,-500.0,0.00021643,4]
[330292413,1719234678588,-525.62,0.00021644,2]
[330292414,1719234678597,-562.53,0.00021644,2]
[330292415,1719234678606,-154.78,0.00021644,2]
[330292416,1719234678616,-300.0,0.00021647,2]
[330292417,1719234678626,-2100.0,0.00021647,2]
[330292418,1719234678635,-155.0,0.00021689,2]
[330292419,1719234678645,-172.7696657,0.00021689,2]
[330292420,1719234678655,-155.0,0.00021689,2]
[330292421,1719234678663,-155.96870225,0.00021689,2]
[330292422,1719234678672,-151.0,0.00021692,2]
[330292423,1719234678682,-1041.5749294,0.00021699,2]
[330292424,1719234678692,-338.48051382,0.00021699,2]
[330292425,1719234678702,-155.0,0.00021699,2]
[330292426,1719234678712,-1490.05606643,0.00021699,2]
[330292427,1719234678722,-366.83690816,0.00021704,2]
[330292428,1719234678733,-260.23706492,0.00021706,2]
[330292429,1719234678742,-205.92304571,0.00021706,2]
[330292430,1719234678752,-866.64783494,0.00021706,2]
[330292431,1719234678761,-939.0,0.0002171,2]
[330292432,1719234678771,-202.55338166,0.00021716,2]
[330292433,1719234678781,-2721.6657556,0.00021734,2]
[330292434,1719234678790,-1830.0,0.00021779,2]
[330292435,1719234678800,-358.0,0.00021779,2]
[330292436,1719234678809,-1655.0,0.00021779,2]
[330292437,1719234678818,-1272.0,0.00021779,2]
[330292438,1719234678827,-448.0,0.00021779,2]
[330292439,1719234678836,-443.0,0.00021779,2]
[330292440,1719234678845,-617.0,0.00021779,2]
[330292441,1719234678854,-812.0,0.00021779,2]
[330292442,1719234678864,-2412.0,0.00021779,2]
[330292443,1719234678873,-1304.0,0.00021779,2]
[330292444,1719234678882,-150.0,0.00021779,2]
[330292445,1719234678892,-547.0,0.00021779,2]
[330292446,1719234678901,-1984.0,0.00021779,2]
[330292447,1719234678911,-3201.0,0.00021779,2]
[330292448,1719234678920,-1068.0,0.00021779,2]
[330292449,1719234678929,-5168.0,0.00021779,2]
[330292450,1719234678939,-291.0,0.00021779,2]
[330292451,1719234678948,-5800.0,0.00021779,2]
[330292452,1719234678957,-31946.101,0.00021779,2]
[330292453,1719234678967,-1661.0,0.00021779,2]
[330292454,1719234678976,-1197.0,0.00021779,2]
[330292455,1719234678987,-155.0,0.00021789,2]
[330292456,1719234678996,-1285.71256166,0.00021799,2]
[330292457,1719234679005,-1000.0,0.000218,5]
[330292458,1719234679014,-500.0,0.00021811,2]
[330292459,1719234679024,-500.0,0.0002182,2]
[330292460,1719234679033,-500.0,0.00021829,2]
[330292461,1719234679042,-500.0,0.00021829,2]
[330292462,1719234679052,-500.0,0.00021838,2]
[330292463,1719234679061,-500.0,0.00021838,2]
[330292464,1719234679071,-500.0,0.00021847,2]
[330292465,1719234679080,-500.0,0.00021847,2]
[330292466,1719234679089,-500.0,0.00021855,2]
[330292467,1719234679099,-500.0,0.00021855,2]
[330292468,1719234679108,-500.0,0.00021864,2]
[330292469,1719234679118,-500.0,0.00021864,2]
[330292470,1719234679127,-500.0,0.00021873,2]
[330292471,1719234679136,-500.0,0.00021873,2]
[330292472,1719234679147,-828.70420662,0.0002188,2]
[330292473,1719234679156,-500.0,0.00021882,2]
[330292474,1719234679165,-500.0,0.00021882,2]
[330292475,1719234679174,-600.0,0.00021885,2]
[330292476,1719234679184,-852.95,0.00021886,2]
[330292477,1719234679193,-418.46,0.00021886,2]
[330292478,1719234679202,-418.39,0.00021886,2]
[330292479,1719234679212,-500.0,0.00021891,2]
[330292480,1719234679222,-500.0,0.00021891,2]
[330292481,1719234679231,-160.0,0.00021899,2]
[330292482,1719234679241,-500.0,0.00021899,2]
[330292483,1719234679251,-500.0,0.00021899,2]
[330292484,1719234679260,-2000.0,0.000219,2]
[330292485,1719234679274,-490.0,0.000219,4]
[330292486,1719234679283,-5800.0,0.000219,2]
[330292487,1719234679293,-1012.06,0.000219,2]
[330292488,1719234679302,-1000.0,0.000219,2]
[330292489,1719234679311,-160.0,0.00021908,2]
[330292490,1719234679321,-500.0,0.00021908,2]
[330292491,1719234679330,-500.0,0.00021908,2]
[330292492,1719234679340,-5800.0,0.00021909,2]
[330292493,1719234679349,-500.0,0.00021917,2]
[330292494,1719234679358,-707.57,0.00021917,4]
[330292495,1719234679367,-58000.0,0.00021917,2]
[330292496,1719234679377,-1240.42440862,0.00021917,2]
[330292497,1719234679386,-160.0,0.00021917,2]
[330292498,1719234679397,-500.0,0.00021917,2]
[330292499,1719234679406,-675.73,0.00021917,4]
[330292500,1719234679414,-619.728225,0.00021917,4]
[330292501,1719234679423,-362.56301956,0.00021917,4]
[330292502,1719234679433,-154.66752622,0.00021917,4]
[330292503,1719234679443,-890.58,0.00021917,4]
[330292504,1719234679451,-500.0,0.00021917,4]
[330292505,1719234679461,-615.75,0.00021917,4]
[330292506,1719234679469,-500.0,0.00021917,4]
[330292507,1719234679478,-500.0,0.00021917,4]
[330292508,1719234679487,-500.0,0.00021917,4]
[330292509,1719234679495,-605.34,0.00021917,4]
[330292510,1719234679504,-500.0,0.00021917,4]
[330292511,1719234679513,-870.76,0.00021917,4]
[330292512,1719234679521,-500.0,0.00021917,4]
[330292513,1719234679531,-500.0,0.00021917,2]
[330292514,1719234679547,-500.0,0.00021917,4]
[330292515,1719234679556,-12829.06120992,0.00021917,2]
[330292516,1719234679565,-601.49,0.00021917,4]
[330292517,1719234679576,-812.19,0.00021917,4]
[330292518,1719234679586,-500.0,0.00021917,4]
[330292519,1719234679595,-925.86,0.00021917,4]
[330292520,1719234679604,-611.19,0.00021917,4]
[330292521,1719234679614,-796.24,0.00021917,4]